bitfinex/quotes_SOLUSD_20240729
["timestamp","ask_amount","ask_price","bid_price","bid_amount"]
[1722251725185,13.22,191.06,190.99,0.34]
[1722251726265,13.22,191.06,190.99,21.38688366]
[1722251726465,13.22,191.06,190.99,34.60688366]
[1722251726987,31.52,191.08,190.99,34.60688366]
[1722251727170,31.52,191.1,191.0,13.22]
[1722251727372,13.22,191.07,191.01,1.21686819]
[1722251727677,13.22,191.07,191.02,1.04686823]
[1722251728986,13.22,191.07,191.01,0.17]
[1722251729289,13.22,191.07,191.01,0.34]
[1722251729901,13.22,191.07,191.01,1.38683899]
[1722251730403,13.22,191.07,191.01,0.34]
[1722251730580,13.22,191.07,191.0,0.34]
[1722251730770,13.22,191.07,191.0,13.56]
[1722251731366,13.22,191.07,191.01,20.0]
[1722251732871,13.22,191.07,191.02,0.17]
[1722251733194,13.22,191.06,191.02,0.17]
[1722251733400,13.22,191.06,191.02,0.34]
[1722251733700,13.22,191.08,191.02,18.0177096]
[1722251733878,31.52,191.11,191.02,18.0177096]
[1722251734071,13.22,191.09,191.02,31.2377096]
[1722251734273,13.22,191.09,191.02,30.1909]
[1722251734692,13.22,191.09,191.02,16.9709]
[1722251736197,31.52,191.12,191.03,14.26672331]
[1722251736501,13.22,191.1,191.04,0.34]
[1722251736679,31.52,191.12,191.04,0.34]
[1722251736887,13.22,191.1,191.04,0.34]
[1722251737404,13.22,191.11,191.04,13.56]
[1722251737813,13.22,191.1,191.04,0.34]
[1722251737974,13.22,191.09,191.04,0.34]
[1722251738304,13.22,191.07,191.04,0.34]
[1722251738681,13.22,191.08,191.04,0.34]
[1722251738992,13.22,191.07,191.03,20.0]
[1722251739191,13.22,191.07,191.02,16.6309]
[1722251739899,13.22,191.09,191.02,17.67769303]
[1722251740071,13.22,191.09,191.02,16.6309]
[1722251740279,13.22,191.09,191.03,0.34]
[1722251740997,13.22,191.09,191.03,1.38672594]
[1722251741301,13.22,191.1,191.03,1.3867262]
[1722251741478,13.22,191.09,191.03,0.34]
[1722251742492,13.22,191.1,191.03,0.34]
[1722251743009,13.22,191.1,191.03,20.34]
[1722251745077,13.22,191.09,191.03,20.34]
[1722251745391,13.22,191.08,191.03,20.0]
[1722251745786,13.22,191.09,191.03,20.0]
[1722251746615,13.22,191.09,191.02,16.6309]
[1722251747907,13.22,191.1,191.03,0.34]
[1722251748117,13.22,191.1,191.03,13.56]
[1722251748289,14.52839643,191.1,191.03,13.56]
[1722251748823,13.22,191.1,191.03,13.56]
[1722251749105,13.22,191.09,191.03,0.34]
[1722251750207,13.22,191.1,191.03,13.56]
[1722251750587,13.22,191.11,191.04,13.22]
[1722251750893,1.30835166,191.11,191.03,13.56]
[1722251751094,44.74,191.12,191.04,13.22]
[1722251751290,44.74,191.12,191.05,0.34]
[1722251751817,44.74,191.12,191.05,13.56]
[1722251751989,44.74,191.12,191.05,20.34]
[1722251752385,44.74,191.12,191.05,33.56]
[1722251752692,44.74,191.12,191.05,20.34]
[1722251753682,13.22,191.12,191.05,20.34]
[1722251753886,1.30829273,191.11,191.05,20.34]
[1722251754087,1.30834755,191.1,191.05,20.0]
[1722251755405,1.30834755,191.1,191.04,20.0]
[1722251755718,13.22,191.11,191.04,20.0]
[1722251756400,13.22,191.11,191.05,0.17]
[1722251758914,1.3083537,191.1,191.05,0.17]
[1722251759615,13.22,191.11,191.05,0.17]
[1722251760089,13.22,191.11,191.05,0.34]
[1722251760289,31.52,191.15,191.05,0.34]
[1722251760290,13.22,191.12,191.05,0.34]
[1722251760492,13.22,191.12,191.05,1.38661752]
[1722251760890,13.22,191.13,191.05,13.56]
[1722251761804,13.22,191.13,191.05,0.34]
[1722251762011,13.22,191.12,191.05,0.34]
[1722251762625,1.30826107,191.11,191.05,0.34]
[1722251762810,13.22,191.12,191.05,0.34]
[1722251763204,1.30826762,191.11,191.05,0.34]
[1722251765002,1.30831761,191.1,191.05,0.34]
[1722251765196,44.74,191.12,191.05,0.34]
[1722251765404,44.74,191.12,191.04,33.22]
[1722251766805,13.22,191.1,191.04,20.0]
[1722251767002,44.74,191.12,191.04,13.22]
[1722251767302,44.74,191.12,191.05,20.34]
[1722251770411,44.74,191.12,191.05,20.0]
[1722251770638,13.22,191.1,191.03,20.0]
[1722251771713,13.22,191.1,191.04,1.04678157]
[1722251774428,4.1852,191.15,191.04,1.04678157]
[1722251774429,31.52,191.11,191.04,1.04678157]
[1722251774644,31.52,191.11,191.03,20.0]
[1722251774798,1.30833845,191.1,191.04,0.34]
[1722251775007,31.52,191.11,191.04,0.34]
[1722251775312,31.52,191.11,191.04,0.17]
[1722251775625,31.52,191.11,191.04,0.34]
[1722251775807,31.52,191.13,191.05,13.22]
[1722251776123,31.52,191.13,191.06,20.0]
[1722251776318,31.52,191.13,191.07,0.17]
[1722251777624,31.52,191.15,191.07,13.39]
[1722251778439,44.74,191.14,191.04,0.17]
[1722251778643,46.04823848,191.14,191.05,13.22]
[1722251778945,46.04823848,191.14,191.06,20.34]
[1722251779704,31.52,191.11,191.06,20.0]
[1722251779906,31.52,191.11,191.03,13.22]
[1722251780106,31.52,191.11,191.04,20.0]
[1722251780927,13.22,191.1,191.03,20.0]
[1722251782644,13.22,191.1,191.03,20.0]
[1722251782843,13.22,191.13,191.06,13.22]
[1722251783135,13.22,191.13,191.07,0.17]
[1722251784807,44.74,191.13,191.03,21.04660924]
[1722251785038,44.74,191.13,191.04,13.22]
[1722251785216,44.74,191.13,191.05,20.0]
[1722251790745,31.52,191.1,191.05,20.0]
[1722251790926,44.74,191.07,190.97,16.3205]
[1722251791118,13.22,191.03,190.97,29.5405]
[1722251791438,13.22,191.03,190.94,8.18192582]
[1722251791439,13.22,191.01,190.93,29.5405]
[1722251792550,13.22,191.01,190.94,14.2672149]
[1722251792917,31.52,191.05,190.95,0.34]
[1722251793117,13.22,191.03,190.95,13.56]
[1722251793318,13.22,191.05,190.97,13.22]
[1722251793542,44.74,191.05,190.98,0.17]
[1722251793865,44.74,191.05,190.98,13.39]
[1722251794350,13.22,191.05,190.98,0.17]
[1722251794532,13.22,191.06,190.98,13.39]
[1722251794927,13.22,191.06,190.99,13.39]
[1722251795350,13.22,191.07,191.0,33.39]
[1722251796253,13.22,191.07,191.0,20.17]
[1722251796254,1.30862819,191.06,191.0,20.17]
[1722251796441,14.52862819,191.06,191.0,20.0]
[1722251796751,13.22,191.05,191.0,20.0]
[1722251796920,1.30875508,191.04,191.0,20.0]
[1722251797124,1.30875508,191.04,190.98,20.0]
[1722251797355,13.22,191.05,190.99,0.17]
[1722251797523,1.30877103,191.04,190.99,0.17]
[1722251798345,1.30876973,191.04,190.99,0.17]
[1722251798744,1.30876973,191.04,190.98,20.0]
[1722251798942,13.22,191.04,190.98,20.0]
[1722251799254,44.74,191.05,190.98,20.0]
[1722251799629,31.52,191.05,190.99,13.22]
[1722251799942,31.52,191.05,191.0,20.0]
[1722251801327,15.4776,191.09,191.0,20.0]
[1722251801656,13.22,191.07,191.01,0.17]
[1722251802259,1.30863841,191.06,191.01,0.17]
[1722251802832,13.22,191.07,191.01,0.17]
[1722251804147,1.30863807,191.06,191.01,0.17]
[1722251804458,1.30863807,191.06,191.01,20.17]
[1722251804850,13.22,191.07,191.01,20.17]
[1722251806047,14.52873468,191.06,191.01,20.0]
[1722251806245,13.22,191.05,190.99,20.0]
[1722251806552,1.30879573,191.04,190.99,20.0]
[1722251806760,44.74,191.07,191.0,14.26701342]
[1722251806945,31.52,191.07,191.01,13.39]
[1722251807337,13.22,191.08,191.01,13.39]
[1722251808462,31.52,191.09,191.01,13.39]
[1722251808662,31.52,191.09,191.02,13.39]
[1722251809160,44.74,191.09,191.02,13.39]
[1722251809527,14.52852176,191.08,191.02,0.17]
[1722251809732,1.30853821,191.07,191.02,0.17]
[1722251810351,1.30853821,191.07,191.01,0.17]
[1722251810539,44.74,191.08,191.01,20.17]
[1722251811144,13.22,191.07,191.01,0.17]
[1722251811349,44.74,191.07,191.0,20.34]
[1722251811638,13.22,191.06,191.0,20.0]
[1722251811845,13.22,191.06,190.99,20.0]
[1722251814060,13.22,191.06,190.99,33.22]
[1722251814366,31.52,191.09,191.0,13.22]
[1722251814546,44.74,191.07,191.0,13.22]
[1722251814874,44.74,191.07,190.99,33.22]
[1722251815338,13.22,191.07,191.0,14.26698531]
[1722251815536,13.22,191.08,191.01,13.22]
[1722251815740,38.1315,191.1,191.02,13.22]
[1722251815967,51.3515,191.1,191.02,13.22]
[1722251816167,31.52,191.13,191.03,33.39]
[1722251816375,13.22,191.11,191.04,13.39]
[1722251816540,13.22,191.11,191.04,13.56]
[1722251817442,31.52,191.13,191.05,13.22]
[1722251817638,44.74,191.12,191.05,13.22]
[1722251818141,44.74,191.12,191.07,13.22]
[1722251818142,31.52,191.12,191.07,13.22]
[1722251818873,44.74,191.14,191.07,13.22]
[1722251821870,44.74,191.14,191.08,0.34]
[1722251822251,44.74,191.14,191.08,20.34]
[1722251822578,31.52,191.14,191.08,33.56]
[1722251823354,31.52,191.17,191.08,33.56]
[1722251823549,13.22,191.15,191.08,33.56]
[1722251823750,13.22,191.15,191.08,34.60650739]
[1722251824770,13.22,191.16,191.08,33.56]
[1722251825569,13.22,191.16,191.09,13.22]
[1722251825874,13.22,191.16,191.1,0.34]
[1722251826571,13.22,191.17,191.1,13.56]
[1722251826761,13.22,191.17,191.11,20.0]
[1722251828375,13.22,191.16,191.11,20.0]
[1722251828561,13.22,191.16,191.1,20.34]
[1722251829670,35.7041,191.2,191.1,20.34]
[1722251829873,13.22,191.17,191.1,33.56]
[1722251830059,13.22,191.18,191.1,33.56]
[1722251830254,31.52,191.21,191.12,13.22]
[1722251830455,13.22,191.19,191.13,20.0]
[1722251831357,31.52,191.22,191.14,30.94157127]
[1722251831554,31.52,191.22,191.15,20.0]
[1722251831555,13.22,191.21,191.15,20.0]
[1722251831759,31.52,191.22,191.15,20.0]
[1722251831760,46.04769722,191.22,191.15,20.0]
[1722251832355,13.22,191.21,191.16,0.17]
[1722251832775,13.22,191.23,191.16,0.34]
[1722251833253,13.22,191.23,191.16,13.56]
[1722251833486,13.22,191.23,191.17,20.0]
[1722251834959,13.22,191.24,191.17,33.22]
[1722251835173,13.22,191.24,191.17,20.0]
[1722251835379,13.22,191.24,191.17,33.22]
[1722251836257,13.22,191.27,191.19,13.22]
[1722251836563,13.22,191.26,191.2,20.34]
[1722251836762,13.22,191.25,191.2,20.34]
[1722251837275,14.52725125,191.26,191.21,20.0]
[1722251837479,13.22,191.26,191.2,0.34]
[1722251837955,13.22,191.25,191.19,20.0]
[1722251838158,13.22,191.23,191.17,20.0]
[1722251838472,13.22,191.21,191.17,20.0]
[1722251838664,13.22,191.21,191.14,29.5555]
[1722251838978,13.22,191.2,191.14,16.3355]
[1722251839183,13.22,191.21,191.14,29.5555]
[1722251839383,13.22,191.22,191.14,29.5555]
[1722251839764,13.22,191.22,191.15,20.0]
[1722251839962,13.22,191.22,191.15,33.22]
[1722251840176,13.22,191.2,191.15,20.0]
[1722251840356,13.22,191.19,191.15,20.0]
[1722251840552,13.22,191.18,191.14,16.3355]
[1722251840756,13.22,191.18,191.11,6.2917]
[1722251840757,1.30789938,191.17,191.11,6.2917]
[1722251840987,13.22,191.18,191.11,19.5117]
[1722251841465,44.74,191.2,191.12,13.22]
[1722251841861,1.30786548,191.23,191.15,13.22]
[1722251842066,14.52786548,191.23,191.16,13.22]
[1722251842283,1.30756956,191.22,191.17,13.56]
[1722251842490,1.30756956,191.22,191.17,0.34]
[1722251842689,1.30756956,191.22,191.18,20.0]
[1722251842872,44.74,191.24,191.17,20.34]
[1722251843187,14.52753192,191.23,191.17,20.34]
[1722251843365,14.52753192,191.23,191.17,20.0]
[1722251843567,1.30753192,191.23,191.17,20.0]
[1722251844064,13.22,191.24,191.17,20.0]
[1722251844467,13.22,191.24,191.17,33.22]
[1722251844663,44.74,191.25,191.17,33.22]
[1722251845357,1.3074224,191.24,191.18,0.34]
[1722251845789,1.30742492,191.23,191.18,0.34]
[1722251846871,13.22,191.25,191.18,0.34]
[1722251847091,1.30742538,191.25,191.18,13.56]
[1722251847264,13.22,191.26,191.19,20.0]
[1722251847464,1.30742405,191.25,191.19,20.0]
[1722251847976,1.30742405,191.25,191.19,33.22]
[1722251848188,31.52,191.28,191.2,13.22]
[1722251848489,31.52,191.28,191.21,33.56]
[1722251848793,31.52,191.28,191.22,33.22]
[1722251849181,13.22,191.3,191.22,13.22]
[1722251849182,31.52,191.29,191.22,13.22]
[1722251849386,31.52,191.29,191.23,20.0]
[1722251850085,31.52,191.29,191.23,21.04574779]
[1722251850463,13.22,191.3,191.23,21.04574779]
[1722251850669,13.22,191.31,191.24,0.34]
[1722251850871,44.74,191.32,191.25,13.22]
[1722251851492,1.30697575,191.31,191.25,13.22]
[1722251851993,1.30697575,191.31,191.26,20.0]
[1722251854399,1.30694702,191.31,191.26,20.0]
[1722251855081,44.74,191.33,191.26,33.22]
[1722251856302,13.22,191.34,191.27,14.26552992]
[1722251857000,44.74,191.34,191.27,14.26552992]
[1722251857380,44.74,191.34,191.27,13.22]
[1722251857587,44.74,191.34,191.28,20.0]
[1722251857787,1.30682548,191.33,191.28,20.0]
[1722251858002,1.30682548,191.32,191.28,20.0]
[1722251858288,4.9650095,191.38,191.28,20.0]
[1722251858289,13.22,191.33,191.28,20.0]
[1722251858600,13.22,191.33,191.26,13.56]
[1722251858601,14.52690094,191.32,191.27,20.0]
[1722251858800,13.22,191.32,191.26,20.34]
[1722251860792,13.22,191.32,191.26,33.56]
[1722251860995,31.52,191.36,191.26,33.56]
[1722251860996,31.52,191.36,191.27,13.22]
[1722251861295,13.22,191.35,191.28,20.0]
[1722251862375,1.3067101,191.34,191.29,0.34]
[1722251863305,13.22,191.35,191.29,0.34]
[1722251863896,13.22,191.34,191.28,20.0]
[1722251864106,13.22,191.32,191.27,20.0]
[1722251864406,31.52,191.35,191.26,20.0]
[1722251864593,13.22,191.32,191.26,20.0]
[1722251864791,31.52,191.35,191.26,20.0]
[1722251864989,13.22,191.33,191.27,0.34]
[1722251865299,36.4850095,191.38,191.27,0.34]
[1722251865498,13.22,191.34,191.27,13.56]
[1722251865807,13.22,191.35,191.28,33.22]
[1722251865991,13.22,191.35,191.29,0.17]
[1722251866177,0.7849095,191.38,191.3,16.3862]
[1722251866178,2.09163281,191.38,191.3,16.3862]
[1722251866384,13.22,191.37,191.31,20.0]
[1722251866802,14.52663416,191.37,191.31,20.0]
[1722251867808,1.30663416,191.37,191.31,20.0]
[1722251873182,32.82663416,191.37,191.31,20.0]
[1722251873384,32.82663416,191.37,191.26,20.0]
[1722251873612,32.82663416,191.37,191.25,16.051]
[1722251873613,59.40033416,191.37,191.25,16.051]
[1722251874899,59.40033416,191.37,191.26,20.34]
[1722251875690,55.21993416,191.37,191.26,20.34]
[1722251879398,44.67,191.34,191.26,33.49]
[1722251880493,44.67,191.35,191.28,13.15]
[1722251880687,44.67,191.35,191.29,20.0]
[1722251880888,13.15,191.36,191.3,0.34]
[1722251881193,1.30665427,191.35,191.3,0.34]
[1722251882689,14.45665427,191.35,191.3,0.34]
[1722251882895,0.7849095,191.38,191.3,0.34]
[1722251882896,13.15,191.36,191.3,0.34]
[1722251883108,1.30665685,191.35,191.3,0.34]
[1722251884899,0.7849095,191.38,191.3,13.49]
[1722251885105,14.45663457,191.37,191.3,13.49]
[1722251885508,45.97663457,191.37,191.3,0.17]
[1722251885714,44.67,191.35,191.28,13.15]
[1722251885913,44.67,191.35,191.29,20.0]
[1722251889420,13.15,191.36,191.29,33.15]
[1722251889618,32.3049095,191.38,191.3,13.15]
[1722251889817,44.67,191.37,191.3,13.15]
[1722251892313,32.3049095,191.38,191.3,13.15]
[1722251892538,45.4549095,191.38,191.31,20.0]
[1722251892708,14.45664769,191.37,191.31,20.0]
[1722251894117,45.4549095,191.38,191.31,20.0]
[1722251894628,1.30662735,191.37,191.31,20.0]
[1722251894928,13.15,191.37,191.31,20.0]
[1722251895108,0.7849095,191.38,191.31,33.15]
[1722251895309,0.7849095,191.38,191.32,13.15]
[1722251895522,1.30655533,191.37,191.31,33.15]
[1722251896127,1.30655533,191.37,191.31,20.0]
[1722251896417,0.7849095,191.38,191.32,13.49]
[1722251896637,0.7849095,191.38,191.33,20.0]
[1722251896940,0.7849095,191.38,191.33,33.15]
[1722251899034,0.7849095,191.38,191.33,20.0]
[1722251900645,13.15,191.37,191.33,20.0]
[1722251900821,13.15,191.37,191.32,20.0]
[1722251904052,0.7849095,191.38,191.32,20.0]
[1722251904354,12.15,191.37,191.32,20.0]
[1722251904935,13.9349095,191.38,191.32,20.0]
[1722251905240,45.4549095,191.38,191.32,20.0]
[1722251905946,1.3065666,191.37,191.32,20.0]
[1722251906926,45.4549095,191.38,191.32,20.0]
[1722251907426,1.30663511,191.37,191.32,20.0]
[1722251908325,45.4549095,191.38,191.32,20.0]
[1722251909450,45.4549095,191.38,191.32,33.15]
[1722251909748,1.30653172,191.37,191.32,33.15]
[1722251910439,1.30653172,191.37,191.32,20.0]
[1722251911620,13.9349095,191.38,191.32,33.15]
[1722251911621,0.7849095,191.38,191.32,33.15]
[1722251914241,2.09147065,191.38,191.32,33.15]
[1722251916422,0.7849095,191.38,191.33,13.49]
[1722251916619,0.7849095,191.38,191.34,20.0]
[1722251918649,0.7849095,191.38,191.36,13.15]
[1722251918856,0.7849095,191.38,191.37,33.15]
[1722251919226,0.7849095,191.38,191.37,20.0]
[1722251919429,0.7849095,191.38,191.36,20.0]
[1722251920247,0.7849095,191.38,191.36,33.15]
[1722251921229,0.7849095,191.38,191.36,20.0]
[1722251922044,0.7849095,191.38,191.35,33.49]
[1722251922338,0.7849095,191.38,191.36,45.0]
[1722251922539,0.7849095,191.38,191.37,20.34]
[1722251922753,0.7849095,191.38,191.37,20.0]
[1722251923339,0.7849095,191.38,191.37,33.32]
[1722251923555,0.7849095,191.38,191.37,33.49]
[1722251924238,0.7849095,191.38,191.37,20.34]
[1722251925369,0.7849095,191.38,191.37,20.0]
[1722251928785,0.7849095,191.38,191.33,20.0]
[1722251929778,13.9349095,191.38,191.33,20.0]
[1722251930151,0.7849095,191.38,191.33,20.0]
[1722251933378,0.7849095,191.38,191.34,0.34]
[1722251934354,0.7849095,191.38,191.33,20.0]
[1722251935377,0.7849095,191.38,191.34,0.17]
[1722251935687,0.7849095,191.38,191.34,0.34]
[1722251936798,0.7849095,191.38,191.34,58.49]
[1722251936995,0.7849095,191.38,191.35,33.15]
[1722251937282,0.7849095,191.38,191.36,20.34]
[1722251940219,265.9842,191.53,191.37,42.3299]
[1722251940358,6.1842,191.53,191.38,65.34]
[1722251940555,19.3342,191.53,191.45,13.15]
[1722251940783,19.3342,191.53,191.46,33.15]
[1722251940982,19.3342,191.53,191.46,20.0]
[1722251941206,13.15,191.51,191.46,20.0]
[1722251941489,13.15,191.47,191.4,13.15]
[1722251941688,44.67,191.48,191.41,33.15]
[1722251942255,44.67,191.46,191.41,20.0]
[1722251942474,13.15,191.45,191.38,13.15]
[1722251942784,13.15,191.41,191.34,13.15]
[1722251943991,13.15,191.42,191.35,13.15]
[1722251944357,13.15,191.43,191.36,13.15]
[1722251944557,13.15,191.42,191.35,13.15]
[1722251945087,31.52,191.45,191.36,33.49]
[1722251945292,13.15,191.42,191.36,20.34]
[1722251946064,1.30624692,191.44,191.36,33.49]
[1722251946263,13.15,191.43,191.36,33.49]
[1722251946464,1.30618845,191.42,191.36,33.49]
[1722251946660,14.45624945,191.43,191.36,33.49]
[1722251947271,1.30624872,191.42,191.36,33.49]
[1722251947575,13.15,191.42,191.36,20.34]
[1722251947772,14.45624957,191.42,191.36,20.34]
[1722251949792,13.15,191.42,191.36,20.34]
[1722251950703,4.1779,191.49,191.36,20.34]
[1722251950704,47.8195,191.48,191.38,13.15]
[1722251950899,13.15,191.46,191.39,20.0]
[1722251951396,13.15,191.45,191.39,20.0]
[1722251951696,1.30603888,191.44,191.39,20.0]
[1722251951898,13.15,191.42,191.39,20.0]
[1722251952189,13.15,191.42,191.36,0.34]
[1722251952393,13.15,191.42,191.36,20.34]
[1722251952725,13.15,191.43,191.36,20.34]
[1722251953693,13.15,191.42,191.36,20.34]
[1722251955304,16.3895,191.48,191.36,20.34]
[1722251955305,14.45621229,191.41,191.36,20.34]
[1722251955502,13.15,191.41,191.36,0.34]
[1722251955704,13.15,191.41,191.32,15.3206]
[1722251955705,13.15,191.39,191.32,15.3206]
[1722251955880,31.43,191.41,191.34,13.15]
[1722251956209,13.15,191.4,191.33,13.15]
[1722251956401,13.15,191.39,191.32,28.4706]
[1722251956907,13.15,191.39,191.33,20.0]
[1722251960227,13.15,191.39,191.34,0.34]
[1722251961218,13.15,191.39,191.34,0.17]
[1722251961400,13.15,191.39,191.33,20.0]
[1722251964921,13.15,191.39,191.34,0.34]
[1722251965243,31.43,191.43,191.34,0.34]
[1722251965244,13.15,191.4,191.34,0.34]
[1722251966219,13.15,191.4,191.34,45.34]
[1722251966419,13.15,191.4,191.35,20.0]
[1722251967232,13.15,191.4,191.34,20.0]
[1722251968315,1.30634621,191.42,191.34,20.0]
[1722251968621,6.5452,191.44,191.36,13.15]
[1722251968822,13.15,191.43,191.37,20.0]
[1722251969345,13.15,191.42,191.37,20.0]
[1722251969514,13.15,191.42,191.36,20.0]
[1722251969720,1.30623745,191.43,191.36,20.0]
[1722251970024,13.15,191.41,191.36,20.0]
[1722251970413,13.15,191.41,191.35,20.34]
[1722251970613,13.15,191.41,191.36,0.34]
[1722251970815,13.15,191.42,191.36,0.34]
[1722251971027,37.9752,191.44,191.36,0.34]
[1722251971345,13.15,191.43,191.37,13.15]
[1722251971528,32.73619147,191.47,191.38,33.49]
[1722251971529,13.15,191.45,191.38,33.49]
[1722251971723,13.15,191.45,191.38,33.15]
[1722251972442,13.15,191.45,191.39,0.34]
[1722251972622,13.15,191.44,191.39,0.34]
[1722251973040,13.15,191.43,191.37,20.0]
[1722251973252,13.15,191.43,191.38,0.34]
[1722251975638,14.45605627,191.42,191.37,20.0]
[1722251975842,13.15,191.42,191.36,20.0]
[1722251977246,13.15,191.42,191.37,0.34]
[1722251977425,13.15,191.43,191.37,0.34]
[1722251977626,13.15,191.44,191.37,0.34]
[1722251977935,1.3060907,191.43,191.37,0.34]
[1722251978123,1.30611735,191.42,191.37,0.34]
[1722251978439,14.45611735,191.42,191.37,0.34]
[1722251978627,13.15,191.42,191.37,0.34]
[1722251979050,31.43,191.47,191.4,13.15]
[1722251979353,44.58,191.47,191.41,20.0]
[1722251979645,44.58,191.47,191.36,20.0]
[1722251979646,13.15,191.45,191.39,0.34]
[1722251980052,13.15,191.45,191.39,65.34]
[1722251980224,13.15,191.45,191.39,20.34]
[1722251980431,13.15,191.44,191.39,20.0]
[1722251980633,13.15,191.45,191.38,33.15]
[1722251980832,13.15,191.45,191.39,0.34]
[1722251981045,14.45601515,191.45,191.39,0.34]
[1722251981427,14.45601515,191.45,191.38,20.0]
[1722251981630,13.15,191.44,191.38,20.0]
[1722251984147,13.15,191.45,191.38,33.15]
[1722251984348,13.15,191.45,191.39,0.34]
[1722251984553,14.45592033,191.44,191.39,0.34]
[1722251984851,14.45592033,191.44,191.38,20.0]
[1722251985338,13.15,191.44,191.38,20.0]
[1722251985647,13.15,191.43,191.38,20.0]
[1722251985948,1.30607032,191.42,191.37,20.0]
[1722251986147,14.45607032,191.42,191.35,13.15]
[1722251986451,13.15,191.42,191.36,20.0]
[1722251986624,31.43,191.47,191.38,13.15]
[1722251986829,31.43,191.47,191.33,1.04497673]
[1722251986830,31.43,191.47,191.4,13.15]
[1722251987045,32.73597978,191.47,191.41,20.0]
[1722251987244,45.88597978,191.47,191.41,20.0]
[1722251987543,32.73597978,191.47,191.41,20.0]
[1722251987755,13.15,191.46,191.39,20.0]
[1722251987937,1.30597976,191.45,191.39,20.0]
[1722251988245,13.15,191.46,191.39,20.0]
[1722251988449,13.15,191.46,191.39,33.15]
[1722251989033,13.15,191.46,191.39,20.0]
[1722251989229,16.3895,191.48,191.36,13.15]
[1722251989230,13.15,191.43,191.36,13.15]
[1722251989429,13.15,191.43,191.37,20.0]
[1722251990152,31.43,191.45,191.39,13.15]
[1722251990331,13.15,191.46,191.4,20.0]
[1722251991947,13.15,191.44,191.39,20.0]
[1722251992146,13.15,191.44,191.38,20.0]
[1722251993864,14.45599313,191.45,191.38,20.0]
[1722251994158,13.15,191.46,191.39,13.15]
[1722251994363,31.43,191.47,191.4,33.15]
[1722251994534,44.58,191.47,191.4,14.19483836]
[1722251994850,29.5395,191.48,191.41,20.0]
[1722251995057,44.58,191.49,191.41,20.34]
[1722251995252,45.88584825,191.49,191.41,33.49]